fUST/lending_fUST_20240214
["ID","MTS","AMOUNT","RATE_DAILY","PERIOD"]
[313969897,1707886244120,-1011.46,0.00036712,14]
[313969898,1707886244129,-1011.46,0.00036712,14]
[313969899,1707886244139,-1011.46,0.00036712,14]
[313969900,1707886244148,-1011.46,0.00036712,14]
[313969901,1707886244157,-1011.6615043,0.00036712,14]
[313969902,1707886244166,-333.58920118,0.00036712,14]
[313969903,1707886244175,-500.0,0.00036712,14]
[313969904,1707886244184,-519.69066432,0.00036712,14]
[313969905,1707886244193,-500.0,0.00036712,14]
[313969906,1707886244202,-500.0,0.00036712,14]
[313969907,1707886244211,-514.87104519,0.00036712,14]
[313969908,1707886244220,-500.0,0.00036712,14]
[313969909,1707886244229,-500.0,0.00036712,14]
[313969910,1707886244238,-500.0,0.00036712,14]
[313969911,1707886244247,-500.0,0.00036712,14]
[313969912,1707886244256,-500.0,0.00036712,14]
[313969913,1707886244266,-500.0,0.00036712,2]
[313969914,1707886244275,-500.0,0.00036712,14]
[313969915,1707886244284,-514.58542449,0.00036712,2]
[313969916,1707886244293,-500.0,0.00036712,14]
[313969917,1707886244303,-500.0,0.00036712,14]
[313969918,1707886244312,-520.05070111,0.00036712,14]
[313969919,1707886244323,-712.56,0.00036712,14]
[313969920,1707886244332,-712.56,0.00036712,14]
[313969921,1707886244342,-712.56,0.00036712,14]
[313969922,1707886244351,-712.56,0.00036712,14]
[313969923,1707886244360,-712.56,0.00036712,14]
[313969924,1707886244370,-712.56,0.00036712,14]
[313969925,1707886244379,-507.07781031,0.00036712,14]
[313969926,1707886244388,-712.56,0.00036712,14]
[313969927,1707886244398,-712.56,0.00036712,14]
[313969928,1707886244410,-712.56,0.00036712,14]
[313969929,1707886244421,-712.56,0.00036712,14]
[313969930,1707886244431,-500.0,0.00036712,14]
[313969931,1707886244440,-712.56,0.00036712,14]
[313969932,1707886244448,-399.42298114,0.00036712,14]
[313969933,1707886244458,-712.56,0.00036712,14]
[313969934,1707886244468,-712.56,0.00036712,14]
[313969935,1707886244477,-712.56,0.00036712,14]
[313969936,1707886244487,-712.56,0.00036712,14]
[313969937,1707886244496,-712.56,0.00036712,14]
[313969938,1707886244507,-712.56,0.00036712,14]
[313969939,1707886244516,-712.56,0.00036712,14]
[313969940,1707886244527,-712.56,0.00036712,14]
[313969941,1707886244537,-712.56,0.00036712,14]
[313969942,1707886244547,-712.56,0.00036712,14]
[313969943,1707886244557,-712.56,0.00036712,14]
[313969944,1707886244567,-712.56,0.00036712,14]
[313969945,1707886244577,-712.76907489,0.00036712,14]
[313969946,1707886244585,-500.0,0.00036712,14]
[313969947,1707886244596,-500.0,0.00036712,14]
[313969948,1707886244606,-500.0,0.00036712,14]
[313969949,1707886244615,-500.0,0.00036712,14]
[313969950,1707886244626,-528.49654946,0.00036712,14]
[313969951,1707886244635,-502.98449145,0.00036712,14]
[313969952,1707886244646,-500.0,0.00036712,14]
[313969953,1707886244656,-500.0,0.00036712,14]
[313969954,1707886244666,-500.0,0.00036712,14]
[313969955,1707886244677,-420.70216104,0.00036712,14]
[313969956,1707886244686,-500.0,0.00036712,14]
[313969957,1707886244695,-500.0,0.00036712,14]
[313969958,1707886244704,-500.0,0.00036712,14]
[313969959,1707886244713,-508.72275314,0.00036712,14]
[313969960,1707886244722,-500.0,0.00036712,14]
[313969961,1707886244732,-500.0,0.00036712,14]
[313969962,1707886244743,-500.0,0.00036712,14]
[313969963,1707886244753,-500.0,0.00036712,14]
[313969964,1707886244762,-235.71352018,0.00036712,14]
[313969965,1707886244771,-2760.47,0.00036712,14]
[313969966,1707886244780,-2760.47,0.00036712,14]
[313969967,1707886244789,-2760.47,0.00036712,14]
[313969968,1707886244798,-2760.47,0.00036712,14]
[313969969,1707886244807,-2760.47,0.00036712,14]
[313969970,1707886244817,-2760.47,0.00036712,14]
[313969971,1707886244826,-2760.47,0.00036712,14]
[313969972,1707886244835,-2760.47,0.00036712,14]
[313969973,1707886244845,-2760.47,0.00036712,14]
[313969974,1707886244855,-2760.47,0.00036712,14]
[313969975,1707886244865,-2760.47,0.00036712,14]
[313969976,1707886244874,-2760.47,0.00036712,14]
[313969977,1707886244883,-500.0,0.00036712,14]
[313969978,1707886244892,-2760.47,0.00036712,14]
[313969979,1707886244902,-2760.47,0.00036712,14]
[313969980,1707886244912,-500.0,0.00036712,14]
[313969981,1707886244921,-2760.47,0.00036712,14]
[313969982,1707886244930,-500.0,0.00036712,14]
[313969983,1707886244940,-2760.47,0.00036712,14]
[313969984,1707886244949,-500.0,0.00036712,14]
[313969985,1707886244959,-2760.47,0.00036712,14]
[313969986,1707886244968,-500.0,0.00036712,14]
[313969987,1707886245006,-2760.47,0.00036712,14]
[313969988,1707886245016,-2760.47,0.00036712,14]
[313969989,1707886245025,-2760.47,0.00036712,14]
[313969990,1707886245034,-2760.47,0.00036712,14]
[313969991,1707886245043,-2760.47,0.00036712,14]
[313969992,1707886245053,-2760.47,0.00036712,14]
[313969993,1707886245062,-500.0,0.00036712,14]
[313969994,1707886245071,-2760.6238796,0.00036712,14]
[313969995,1707886245081,-500.0,0.00036712,14]
[313969996,1707886245090,-500.0,0.00036712,14]
[313969997,1707886245099,-500.0,0.00036712,14]
[313969998,1707886245108,-500.0,0.00036712,14]
[313969999,1707886245117,-500.0,0.00036712,14]
[313970000,1707886245126,-500.0,0.00036712,14]
[313970001,1707886245134,-500.0,0.00036712,14]
[313970002,1707886245143,-500.0,0.00036712,14]
[313970003,1707886245152,-500.0,0.00036712,14]
[313970004,1707886245161,-500.0,0.00036712,14]
[313970005,1707886245171,-500.0,0.00036712,14]
[313970006,1707886245180,-543.01493764,0.00036712,14]
[313970007,1707886245189,-500.0,0.00036712,14]
[313970008,1707886245198,-515.95283957,0.00036712,14]
[313970009,1707886245207,-500.0,0.00036712,14]
[313970010,1707886245218,-500.0,0.00036712,14]
[313970011,1707886245227,-500.0,0.00036712,14]
[313970012,1707886245236,-500.0,0.00036712,14]
[313970013,1707886245245,-500.0,0.00036712,14]
[313970014,1707886245254,-500.0,0.00036712,14]
[313970015,1707886245267,-500.0,0.00036712,14]
[313970016,1707886245306,-553.58562269,0.00036712,14]
[313970017,1707886245315,-500.0,0.00036712,14]
[313970018,1707886245327,-500.0,0.00036712,14]
[313970019,1707886245337,-375.96,0.00036712,14]
[313970020,1707886245346,-500.0,0.00036712,14]
[313970021,1707886245354,-500.0,0.00036712,14]
[313970022,1707886245363,-500.0,0.00036712,14]
[313970023,1707886245374,-500.0,0.00036712,14]
[313970024,1707886245382,-500.0,0.00036712,14]
[313970025,1707886245392,-500.0,0.00036712,14]
[313970026,1707886245462,-500.0,0.00036712,14]
[313970027,1707886245471,-500.0,0.00036712,14]
[313970028,1707886245480,-500.0,0.00036712,14]
[313970029,1707886245489,-500.0,0.00036712,14]
[313970030,1707886245498,-500.0,0.00036712,14]
[313970031,1707886245507,-516.83149168,0.00036712,14]
[313970032,1707886245516,-500.0,0.00036712,14]
[313970033,1707886245525,-500.0,0.00036712,14]
[313970034,1707886245534,-500.0,0.00036712,14]
[313970035,1707886245543,-500.0,0.00036712,14]
[313970036,1707886245552,-239.19913286,0.00036712,14]
[313970037,1707886245561,-500.0,0.00036712,14]
[313970038,1707886245570,-500.0,0.00036712,14]
[313970039,1707886245579,-500.0,0.00036712,14]
[313970040,1707886245588,-500.0,0.00036712,14]
[313970041,1707886245596,-500.0,0.00036712,14]
[313970042,1707886245605,-500.0,0.00036712,14]
[313970043,1707886245614,-500.0,0.00036712,14]
[313970044,1707886245623,-500.0,0.00036712,14]
[313970045,1707886245632,-500.0,0.00036712,14]
[313970046,1707886245641,-500.0,0.00036712,14]
[313970047,1707886245650,-500.0,0.00036712,14]
[313970048,1707886245659,-206.94201414,0.00036712,14]
[313970049,1707886245669,-500.0,0.00036712,14]
[313970050,1707886245678,-500.0,0.00036712,14]
[313970051,1707886245687,-500.0,0.00036712,14]
[313970052,1707886245696,-500.0,0.00036712,14]
[313970053,1707886245704,-505.47550368,0.00036712,14]
[313970054,1707886245714,-500.0,0.00036712,14]
[313970055,1707886245723,-500.0,0.00036712,14]
[313970056,1707886245732,-500.0,0.00036712,14]
[313970057,1707886245741,-510.73455519,0.00036712,14]
[313970058,1707886245750,-500.0,0.00036712,14]
[313970059,1707886245759,-500.0,0.00036712,14]
[313970060,1707886245768,-500.0,0.00036712,14]
[313970061,1707886245777,-500.0,0.00036712,14]
[313970062,1707886245785,-500.0,0.00036712,14]
[313970063,1707886245795,-512.24922785,0.00036712,14]
[313970064,1707886245804,-500.0,0.00036712,14]
[313970065,1707886245813,-500.0,0.00036712,14]
[313970066,1707886245822,-500.0,0.00036712,14]
[313970067,1707886245832,-500.0,0.00036712,14]
[313970068,1707886245841,-233.35313902,0.00036712,14]
[313970069,1707886245850,-4235.17,0.00036712,14]
[313970070,1707886245859,-4235.17,0.00036712,14]
[313970071,1707886245868,-4235.17,0.00036712,14]
[313970072,1707886245877,-4235.17,0.00036712,14]
[313970073,1707886245887,-4235.17,0.00036712,14]
[313970074,1707886245897,-4235.17,0.00036712,14]
[313970075,1707886245907,-4235.17,0.00036712,14]
[313970076,1707886245916,-2970.3,0.00036712,14]
[313970077,1707886245926,-4235.17,0.00036712,14]
[313970078,1707886245935,-2970.3,0.00036712,14]
[313970079,1707886245944,-2970.3,0.00036712,14]
[313970080,1707886245954,-2970.3,0.00036712,14]
[313970081,1707886245963,-4235.17,0.00036712,14]
[313970082,1707886245972,-2970.3,0.00036712,14]
[313970083,1707886245981,-4235.17,0.00036712,14]
[313970084,1707886245996,-2970.3,0.00036712,14]
[313970085,1707886246007,-4235.17,0.00036712,14]
[313970086,1707886246017,-4235.17,0.00036712,14]
[313970087,1707886246026,-2970.3,0.00036712,14]
[313970088,1707886246036,-4235.17,0.00036712,14]
[313970089,1707886246047,-2970.3,0.00036712,14]
[313970090,1707886246056,-4235.17,0.00036712,14]
[313970091,1707886246066,-2970.3,0.00036712,14]
[313970092,1707886246075,-4235.17,0.00036712,14]
[313970093,1707886246085,-2970.3,0.00036712,14]
[313970094,1707886246094,-4235.17,0.00036712,14]
[313970095,1707886246104,-500.0,0.00036712,14]
[313970096,1707886246113,-2970.3,0.00036712,14]
[313970097,1707886246122,-4235.17,0.00036712,14]
[313970098,1707886246132,-500.0,0.00036712,14]
[313970099,1707886246142,-4235.17,0.00036712,14]
[313970100,1707886246151,-500.0,0.00036712,14]
[313970101,1707886246161,-500.0,0.00036712,14]
[313970102,1707886246171,-2970.3,0.00036712,14]
[313970103,1707886246181,-4235.17,0.00036712,14]
[313970104,1707886246190,-500.0,0.00036712,14]
[313970106,1707886246199,-500.0,0.00036712,14]
[313970107,1707886246208,-2970.3,0.00036712,14]
[313970108,1707886246217,-4235.17,0.00036712,14]
[313970109,1707886246227,-449.0181213,0.00036712,14]
[313970110,1707886246236,-2970.3,0.00036712,14]
[313970111,1707886246245,-4235.17,0.00036712,14]
[313970112,1707886246254,-2970.3,0.00036712,14]
[313970113,1707886246264,-500.0,0.00036712,14]
[313970114,1707886246274,-2970.3,0.00036712,14]
[313970115,1707886246283,-500.0,0.00036712,14]
[313970116,1707886246293,-4235.17,0.00036712,14]
[313970117,1707886246302,-2970.3,0.00036712,14]
[313970118,1707886246311,-4235.17,0.00036712,14]
[313970119,1707886246320,-2970.3,0.00036712,14]
[313970120,1707886246337,-4235.40983911,0.00036712,14]
[313970121,1707886246346,-500.0,0.00036712,14]
[313970122,1707886246355,-511.08775586,0.00036712,14]
[313970123,1707886246364,-2970.3,0.00036712,14]
[313970124,1707886246374,-2970.3,0.00036712,14]
[313970125,1707886246385,-2970.3,0.00036712,14]
[313970126,1707886246394,-2970.3,0.00036712,14]
[313970127,1707886246404,-2970.3,0.00036712,14]
[313970128,1707886246413,-2970.44558576,0.00036712,14]
[313970129,1707886246423,-500.0,0.00036712,14]
[313970130,1707886246433,-500.0,0.00036712,14]
[313970132,1707886246442,-500.0,0.00036712,14]
[313970134,1707886246451,-500.0,0.00036712,14]
[313970135,1707886246460,-508.70147972,0.00036712,14]
[313970136,1707886246469,-500.0,0.00036712,14]
[313970138,1707886246478,-284.78928393,0.00036712,14]
[313970139,1707886246488,-500.0,0.00036712,14]
[313970140,1707886246498,-500.0,0.00036712,14]
[313970141,1707886246507,-500.0,0.00036712,14]
[313970142,1707886246516,-500.0,0.00036712,14]
[313970143,1707886246526,-500.0,0.00036712,14]
[313970144,1707886246535,-500.0,0.00036712,14]
[313970145,1707886246545,-294.69230977,0.00036712,14]
[313970146,1707886246554,-500.0,0.00036712,14]
[313970147,1707886246563,-500.0,0.00036712,14]
[313970148,1707886246572,-500.0,0.00036712,14]
[313970149,1707886246582,-500.0,0.00036712,14]
[313970150,1707886246590,-500.0,0.00036712,14]
[313970151,1707886246600,-500.0,0.00036712,14]
[313970152,1707886246612,-500.0,0.00036712,14]
[313970153,1707886246621,-500.0,0.00036712,14]
[313970155,1707886246630,-500.0,0.00036712,14]
[313970157,1707886246639,-197.21079413,0.00036712,14]
[313970159,1707886246649,-500.0,0.00036712,14]
[313970160,1707886246658,-500.0,0.00036712,14]
[313970161,1707886246668,-500.0,0.00036712,14]
[313970162,1707886246678,-500.0,0.00036712,14]
[313970163,1707886246687,-500.0,0.00036712,14]
[313970164,1707886246696,-500.0,0.00036712,14]
[313970165,1707886246705,-506.57113098,0.00036712,14]
[313970166,1707886246714,-500.0,0.00036712,14]
[313970167,1707886246723,-500.0,0.00036712,14]
[313970168,1707886246733,-500.0,0.00036712,14]
[313970169,1707886246742,-622.66,0.00036712,14]
[313970170,1707886246752,-500.0,0.00036712,14]
[313970171,1707886246762,-436.87930762,0.00036712,14]
[313970172,1707886246772,-2713.55,0.00036712,14]
[313970173,1707886246782,-2713.55,0.00036712,14]
[313970174,1707886246791,-2713.55,0.00036712,14]
[313970175,1707886246801,-2713.55,0.00036712,14]
[313970176,1707886246810,-2713.55,0.00036712,14]
[313970177,1707886246819,-2713.55,0.00036712,14]
[313970178,1707886246829,-2713.55,0.00036712,14]
[313970179,1707886246839,-2713.55,0.00036712,14]
[313970180,1707886246848,-2713.55,0.00036712,14]
[313970181,1707886246858,-2713.55,0.00036712,14]
[313970182,1707886246867,-2713.55,0.00036712,14]
[313970183,1707886246877,-2713.55,0.00036712,14]
[313970184,1707886246887,-2713.55,0.00036712,14]
[313970185,1707886246896,-2713.55,0.00036712,14]
[313970186,1707886246907,-2713.55,0.00036712,14]
[313970187,1707886246978,-2713.55,0.00036712,14]
[313970188,1707886246988,-2713.55,0.00036712,14]
[313970189,1707886246997,-2713.55,0.00036712,14]
[313970190,1707886247007,-1530.25351803,0.00036712,14]
[313970191,1707886247122,-1183.29648197,0.00036712,14]
[313970192,1707886247131,-2713.55,0.00036712,14]
[313970193,1707886247141,-820.14350935,0.00036712,14]
[313970194,1707886247153,-1893.40649065,0.00036712,14]
[313970195,1707886247162,-2713.55,0.00036712,14]
[313970196,1707886247171,-2713.55,0.00036712,14]
[313970197,1707886247182,-2713.64730082,0.00036712,14]
[313970198,1707886247191,-14.08360621,0.00036712,14]
[313970199,1707886247234,-994.0795341,0.00036602,3]
[313970200,1707886247246,-585.9904659,0.00036602,3]
[313970201,1707886247255,-294.26110812,0.00036707,15]
[313970202,1707886247267,-205.73889188,0.00036707,15]
[313970203,1707886247276,-485.91639379,0.00036712,14]
[313970204,1707886247285,-500.0,0.00036712,14]
[313970205,1707886247294,-500.0,0.00036712,14]
[313970206,1707886247303,-500.0,0.00036712,14]
[313970207,1707886247312,-533.59064528,0.00036712,14]
[313970208,1707886247323,-516.91907953,0.00036712,14]
[313970209,1707886247335,-500.0,0.00036712,14]
[313970210,1707886247345,-500.0,0.00036712,14]
[313970211,1707886247354,-500.0,0.00036712,14]
[313970212,1707886247363,-199.03498952,0.00036712,14]
[313970213,1707886247489,-11453.57406276,0.000367,2]
[313970238,1707887348315,-1041.35073906,0.00020999,2]
[313970239,1707887348336,-996.71216345,0.00021,2]
[313970271,1707887434674,-150.33426151,0.00021,2]
[313970273,1707887434683,-175.0,0.00025085,2]
[313970275,1707887434692,-160.3125,0.00025085,2]
[313970277,1707887434702,-1324.47025988,0.00027532,2]
[313970280,1707887434714,-1.44024604,0.00027532,2]
[313970281,1707887434723,-354.69316771,0.00027533,2]
[313970283,1707887434737,-1528.36831875,0.00027533,2]
[313970285,1707887434746,-1717.67691447,0.00028,2]
[313970286,1707887434755,-561.60111428,0.00028793,2]
[313970287,1707887434764,-2211.57937733,0.00028819,2]
[313970289,1707887434773,-586.0552272,0.00031622,2]
[313970290,1707887434782,-150.0,0.00034612,2]
[313970291,1707887434791,-1399.12767244,0.00034915,4]
[313970293,1707887434800,-4680.11881881,0.00034916,7]
[313970314,1707887438811,-319.88118119,0.00034916,7]
[313970316,1707887438822,-200.0,0.000351,4]
[313970318,1707887438832,-528.0,0.0003589,2]
[313970320,1707887438841,-89.77397838,0.00036,2]
[313970323,1707887438853,-438.22602162,0.00036,2]
[313970325,1707887438862,-378.8014663,0.00036,2]
[313970327,1707887438871,-200.1809906,0.00036,2]
[313970329,1707887438880,-180.7967992,0.00036,2]
[313970331,1707887438889,-200.1809906,0.00036,2]
[313970333,1707887438898,-200.1809906,0.00036,2]
[313970334,1707887438907,-217.35995297,0.00036612,2]
[313970374,1707887443815,-59.27874592,0.00036612,2]
[313970375,1707887443825,-500.0,0.00036699,2]
[313970376,1707887443834,-1404.19250009,0.000367,2]
[313970455,1707888485430,-537.90288626,0.00020377,2]
[313970456,1707888485463,-1435.4601253,0.00020377,2]
[313970457,1707888485495,-154.81422293,0.00020377,2]
[313970458,1707888485641,-258.12096947,0.00020377,2]
[313970459,1707888485674,-378.05953843,0.00020378,2]
[313970460,1707888485687,-537.90288626,0.00020378,2]
[313970461,1707888485699,-1033.38162896,0.00020378,2]
[313970462,1707888485709,-299.6042033,0.00020379,2]
[313970463,1707888485718,-102.47429304,0.00020379,2]
[313970464,1707888485730,-52.33992989,0.00020379,2]
[313970465,1707888485740,-102.47429304,0.00020379,2]
[313970466,1707888485761,-258.12096947,0.00020379,2]
[313970467,1707888485778,-1949.34405365,0.00020379,2]
[313970468,1707888559157,-524.21369774,0.00020373,2]
[313970469,1707888559176,-154.81422293,0.00020373,2]
[313970470,1707888559196,-500.0,0.00020374,2]
[313970471,1707888559216,-154.81422293,0.00020375,2]
[313970472,1707888559236,-6116.12311429,0.00020383,2]
[313970473,1707888559257,-24900.0,0.00020384,2]
[313970474,1707888559277,-187.53741172,0.00021,20]
[313970475,1707888559297,-168.8292523,0.00021718,2]
[313970476,1707888559316,-326.8111299,0.00023013,2]
[313970477,1707888559336,-200.0,0.00023014,7]
[313970478,1707888559356,-248.99709386,0.00023287,2]
[313970479,1707888559385,-54.65814194,0.00023287,2]
[313970480,1707888559408,-455.74836527,0.00025085,2]
[313970481,1707888559430,-280.0,0.00025316,7]
[313970482,1707888559451,-391.0,0.00027847,15]
[313970483,1707888559471,-1717.67691447,0.00028,2]
[313970484,1707888561109,718.86881418,0.00020372,2]
[313970543,1707888631873,-3954.98076195,0.00028846,2]
[313970545,1707888631884,-815.59269643,0.00028846,2]
[313970547,1707888631897,-44817.28961965,0.00028846,2]
[313970548,1707888631907,-8016.35417458,0.0002892,2]
[313970549,1707888631917,-1683.43437666,0.0002892,2]
[313970550,1707888631926,-1960.19988054,0.0002892,2]
[313970551,1707888631937,-620.00354047,0.00030943,2]
[313970552,1707888631947,-154.79876161,0.00031,4]
[313970553,1707888631958,-150.81901718,0.00031751,4]
[313970554,1707888631968,-150.81901718,0.00032399,2]
[313970555,1707888631979,-402.53923668,0.00034511,4]
[313970556,1707888631991,-151.58941154,0.00034512,2]
[313970557,1707888632002,-1210.70086554,0.0003453,4]
[313970558,1707888632012,-5000.0,0.00034933,7]
[313970559,1707888632024,-200.0,0.000352,4]
[313970560,1707888632035,-777.0,0.00035232,2]
[313970561,1707888632046,-1258.64,0.00035596,3]
[313970562,1707888632057,-1510.37,0.00035606,3]
[313970563,1707888632066,-500.0,0.00035616,2]
[313970564,1707888632075,-307.6703822,0.00035726,2]
[313970565,1707888632087,-950.45,0.0003586,3]
[313970566,1707888632096,-1812.45,0.0003588,3]
[313970567,1707888632106,-396.0,0.0003589,2]
[313970568,1707888632117,-153.0,0.0003589,2]
[313970569,1707888632126,-153.0,0.0003589,2]
[313970570,1707888632136,-153.0,0.0003589,2]
[313970571,1707888632145,-400.2930112,0.0003589,2]
[313970572,1707888632154,-153.0,0.0003589,2]
[313970573,1707888632163,-153.0,0.0003589,2]
[313970574,1707888632172,-153.0,0.0003589,2]
[313970575,1707888632183,-153.0,0.0003589,2]
[313970576,1707888632193,-153.0,0.0003589,2]
[313970577,1707888632205,-153.0,0.0003589,2]
[313970578,1707888632214,-153.0,0.0003589,2]
[313970579,1707888632225,-154.95900261,0.00035976,4]
[313970580,1707888632236,-150.81901718,0.00035998,2]
[313970581,1707888632245,-250.19065122,0.00035998,2]
[313970582,1707888632255,-396.0,0.00036,2]
[313970584,1707888632265,-18699.93963865,0.00036343,4]
[313970585,1707888632275,-182.00395127,0.000365,2]
[313970586,1707888632286,-385.23303111,0.000366,2]
[313970587,1707888632295,-301.63803436,0.00036603,4]
[313970588,1707888632305,-217.58507873,0.00036606,15]
[313970589,1707888632314,-500.0,0.00036606,15]
[313970590,1707888632325,-500.0,0.00036606,15]
[313970591,1707888632334,-500.0,0.00036606,15]
[313970592,1707888632343,-500.0,0.00036606,15]
[313970593,1707888632352,-217.39256144,0.00036606,15]
[313970630,1707888638110,-154.81422293,0.0003451,4]
[313970631,1707888638120,-182.00395124,0.00036537,2]
[313970632,1707888638130,-182.00395124,0.00036575,2]
[313970633,1707888638139,-250.0,0.00036611,2]
[313970634,1707888638149,-500.0,0.00036611,15]
[313970635,1707888638158,-500.0,0.00036611,15]
[313970636,1707888638167,-500.0,0.00036611,15]
[313970637,1707888638177,-293.26886892,0.00036611,15]
[313970638,1707888638186,-500.0,0.00036611,15]
[313970639,1707888638195,-500.0,0.00036611,15]
[313970640,1707888638204,-500.0,0.00036611,15]
[313970641,1707888638213,-500.0,0.00036611,15]
[313970642,1707888638222,-500.0,0.00036611,15]
[313970643,1707888638231,-500.0,0.00036611,15]
[313970644,1707888638240,-500.0,0.00036611,15]
[313970645,1707888638249,-500.0,0.00036611,15]
[313970646,1707888638259,-500.0,0.00036611,15]
[313970647,1707888638268,-500.0,0.00036611,15]
[313970648,1707888638278,-500.0,0.00036611,15]
[313970649,1707888638287,-500.0,0.00036611,15]
[313970650,1707888638296,-213.06960451,0.00036611,15]
[313970651,1707888638308,-286.93039549,0.00036611,15]
[313970652,1707888638317,-500.0,0.00036611,15]
[313970653,1707888638326,-500.0,0.00036611,15]
[313970654,1707888638335,-500.0,0.00036611,15]
[313970655,1707888638344,-500.0,0.00036611,15]
[313970656,1707888638353,-500.0,0.00036611,15]
[313970657,1707888638362,-500.0,0.00036611,15]
[313970658,1707888638372,-500.0,0.00036611,15]
[313970659,1707888638381,-500.0,0.00036611,15]
[313970660,1707888638390,-500.0,0.00036611,15]
[313970661,1707888638399,-500.0,0.00036611,15]
[313970662,1707888638408,-500.0,0.00036611,15]
[313970663,1707888638417,-500.0,0.00036611,15]
[313970664,1707888638427,-500.0,0.00036611,15]
[313970665,1707888638436,-500.0,0.00036611,15]
[313970666,1707888638445,-500.0,0.00036611,15]
[313970667,1707888638454,-228.08952574,0.00036611,15]
[313970668,1707888638464,-38.62172623,0.00036611,15]
[313970672,1707888641207,-1048.87,0.00036602,3]
[313970673,1707888641218,-461.37827377,0.00036611,15]
[313970674,1707888641227,-233.49248716,0.00036611,15]
[313970675,1707888641239,-266.50751284,0.00036611,15]
[313970676,1707888641248,-500.0,0.00036611,15]
[313970677,1707888641257,-500.0,0.00036611,15]
[313970678,1707888641267,-500.0,0.00036611,15]
[313970679,1707888641276,-500.0,0.00036611,15]
[313970680,1707888641285,-500.0,0.00036611,15]
[313970681,1707888641295,-500.0,0.00036611,15]
[313970682,1707888641306,-318.64446081,0.00036611,15]
[313970683,1707888641318,-181.35553919,0.00036611,15]
[313970684,1707888641327,-500.0,0.00036611,15]
[313970685,1707888641336,-500.0,0.00036611,15]
[313970686,1707888641346,-500.0,0.00036611,15]
[313970687,1707888641355,-500.0,0.00036611,15]
[313970688,1707888641364,-500.0,0.00036611,15]
[313970689,1707888641373,-500.0,0.00036611,15]
[313970690,1707888641382,-500.0,0.00036611,15]
[313970691,1707888641391,-500.0,0.00036611,15]
[313970692,1707888641400,-500.0,0.00036611,15]
[313970693,1707888641409,-500.0,0.00036611,15]
[313970694,1707888641420,-500.0,0.00036611,15]
[313970695,1707888641432,-509.868986,0.00036611,15]
[313970696,1707888641445,-291.3992619,0.00036611,15]
[313970697,1707888641457,-500.0,0.00036611,15]
[313970698,1707888641469,-250.25890479,0.00036611,15]
[313970770,1707889641105,-258.12096947,0.00025083,2]
[313970771,1707889641125,-707.94405424,0.00025084,2]
[313970822,1707889832067,-1190.62301956,0.00025084,2]
[313970825,1707889832079,-3407.75242564,0.00025084,2]
[313970827,1707889832088,-200.0,0.00025084,2]
[313970830,1707889832098,-3097.03857708,0.00025085,2]
[313970833,1707889832107,-43.81551551,0.00025085,2]
[313971086,1707889846087,-182.69355139,0.00025085,2]
[313971087,1707889846097,-69.56673342,0.00025085,2]
[313971141,1707890971097,-200.0,0.00022937,2]
[313971142,1707890973092,-452.21228434,0.00022937,2]
[313971143,1707890973112,-500.0,0.00022937,2]
[313971144,1707890973131,-1588.46625264,0.00022937,2]
[313971145,1707890973151,-258.12096947,0.00022938,2]
[313971146,1707890973170,-324.10699076,0.00022939,2]
[313971147,1707890973188,-150.0,0.00022985,2]